Workbook

Sheet Wages_Salaries
B2: N3 Lifeskills - Practice Assessment Created by Mr.Lafferty@mathsrevision.com
AZ6: 2 | BA6: =IF(AZ6=1,"weekly","monthly") -> monthly
AZ7: =BA6 -> monthly | BA7: =ROUND(RAND()*(800-400)+400,1) -> 699.8
D8: ="Q1. (a) Joseph's "&AZ7&" wage-slip is shown opposite." -> Q1. (a) Joseph's monthly wage-slip is shown opposite. | Y8: Gross Pay | AE8: =AZ8 -> 2799.2 | AZ8: =IF(AZ6=2,BA8,BA7) -> 2799.2 | BA8: =4*BA7 -> 2799.2
Y9: Deductions | AE9: =AZ9 -> 923.7 | AZ9: =ROUND(ROUND(RAND()*(0.35-0.27)+0.27,2)*AZ8,1) -> 923.7
E10: Calculate his NET pay. | Y10: NET Pay | AE10: 1993.6 | AZ10: =AZ8-AZ9 -> 1875.5
AZ11: =IF(AZ6=1,"week","month") -> month
D12: =" (b) Joseph's sells cars and receives a bonus of £"&AZ12&" for every car he sells." -> (b) Joseph's sells cars and receives a bonus of £560 for every car he sells. | AG12: BONUS | AM12: 2655 | AZ12: =ROUND(AZ8/(BA12+1),0) -> 560 | BA12: =ROUND(RAND()*(9-4)+4,0) -> 4
F13: ="This "&AZ11&" he sells "&BA12&" cars." -> This month he sells 4 cars. | AG13: ="Tax @ "&AZ13&"%" -> Tax @ 10% | AM13: 531 | AZ13: =ROUND(RAND()*(2-1)+1,0)*10 -> 10 | BA13: =BA12*AZ12 -> 2240
F14: ="He must pay tax on his bonus at a rate of "&AZ13&"%. Fill in the bonus part of his wage-slip." -> He must pay tax on his bonus at a rate of 10%. Fill in the bonus part of his wage-slip. | AG14: Actual Bonus | AM14: 2124 | AZ14: =AZ13/100*BA13 -> 224
AZ15: =BA13-AZ14 -> 2016
D17: ="Q3. Lewis is promised an hourly rate of £"&TEXT(BA17,"0.00")&". He gets £"&TEXT(AZ18,"0.00")&" for "&BA19&" hours work. Did he get his promised hourly rate." -> Q3. Lewis is promised an hourly rate of £8.20. He gets £352.60 for 43 hours work. Did he get his promised hourly rate. | AZ17: =IF(BB17=1,"Yes","No") -> Yes | BA17: =ROUND(RAND()*(18-7.5)+7.5,1) -> 8.2 | BB17: =ROUND(RAND()*(1-0)+0,0) -> 1
AZ18: =BA17*BA19 -> 352.6 | BA18: =IF(BB17=1,BA17,(BA17-0.1)) -> 8.2
AZ19: =BA18*BA19 -> 352.6 | BA19: =ROUND(RAND()*(50-25)+25,0) -> 43
AZ20: =BA20*BA21*52 -> 23400 | BA20: =ROUND(RAND()*(18-8)+8,0) -> 18 | BB20: =ROUND(RAND()*(8-2)+2,0) -> 2
D21: ="Q4. Laura gets a "&BB20&"% increase in her annual salary. Her salary last year was £"&TEXT(AZ20,0)&". What is her new salary." -> Q4. Laura gets a 2% increase in her annual salary. Her salary last year was £23400. What is her new salary. | AM21: £ | AZ21: =ROUND(AZ20+AZ20*BB20/100,2) -> 23868 | BA21: =ROUND(RAND()*(40-15)+15,0) -> 25
D24: ="Q5. Andrew gets paid double time if he works the weekend. His normal hourly rate is £"&TEXT(AZ24,"0.00")&". Calculate his weekly wage." -> Q5. Andrew gets paid double time if he works the weekend. His normal hourly rate is £6.40. Calculate his weekly wage. | AZ24: =ROUND(RAND()*(20-6)+6,1) -> 6.4
S25: Hours Worked | AZ25: =ROUND(RAND()*(13-6)+6,0) -> 8
O26: Monday | S26: =AZ25 -> 8 | AZ26: =ROUND(RAND()*(13-6)+6,0) -> 8
O27: Tuesday | S27: =AZ26 -> 8 | AZ27: 13
O28: Wednesday | S28: 13 | AZ28: 11
O29: Thursday | S29: 11 | AZ29: 12
O30: Friday | S30: 12 | AZ30: 10
O31: Saturday | S31: 10 | AZ31: 9
O32: Sunday | S32: 9 | AZ32: =SUM(AZ25:AZ31)+AZ31+AZ30 -> 90
O34: Weekly Salary £ | AZ34: =AZ32*AZ24 -> 576
D37: ="Q6. Derek is paid 'time and half' if he works over 5pm during week days and 'double time' at weekends." -> Q6. Derek is paid 'time and half' if he works over 5pm during week days and 'double time' at weekends.
E38: ="Calculate his weekly wage if his hourly rate is £"&TEXT(AZ38,"0.00")&"." -> Calculate his weekly wage if his hourly rate is £6.20. | AZ38: =ROUND(RAND()*(10-6)+6,1) -> 6.2 | BA38: =1.5*AZ38 -> 9.3
Q39: Days | U39: Before 5pm | Y39: After 5pm | AZ39: =ROUND(RAND()*(8-5)+5,0) -> 5 | BA39: =ROUND(RAND()*(4-0)+0,0) -> 4
Q40: Monday | U40: =AZ39 -> 5 | Y40: =BA39 -> 4 | AZ40: =ROUND(RAND()*(8-5)+5,0) -> 7 | BA40: =ROUND(RAND()*(4-0)+0,0) -> 4
Q41: Tuesday | U41: =AZ40 -> 7 | Y41: =BA40 -> 4 | AZ41: 8 | BA41: =ROUND(RAND()*(4-0)+0,0) -> 1
Q42: Wednesday | U42: 8 | Y42: =BA41 -> 1 | AZ42: 8 | BA42: =ROUND(RAND()*(4-0)+0,0) -> 1
Q43: Thursday | U43: 8 | Y43: =BA42 -> 1 | AZ43: 5 | BA43: =ROUND(RAND()*(4-0)+0,0) -> 2
Q44: Friday | U44: 5 | Y44: =BA43 -> 2 | AZ44: 8
Q45: Saturday | U45: 8 | AZ45: 6
Q46: Sunday | U46: 6 | AG46: Weekly Salary £ | AZ46: =SUM(AZ39:AZ45)+AZ45+AZ44 -> 61
AZ47: =AZ46*AZ38 -> 378.2 | BA47: =SUM(BA39:BA43)*BA38 -> 111.6
AZ48: =AZ47+BA47+BB47 -> 489.8
D50: Q7. Complete the Wage Slip below : | AZ50: =ROUND(RAND()*(1250-592)+592,1) -> 929.8
AZ51: =ROUND(AZ50*ROUND(RAND()*(0.25-0.2)+0.2,2),2) -> 223.15
H52: Name: Joe Bloggs | AZ52: =ROUND(AZ50*ROUND(RAND()*(0.18-0.1)+0.1,2),2) -> 139.47
AZ53: =ROUND(AZ50*ROUND(RAND()*(0.04-0.02)+0.02,2),2) -> 27.89
H54: Income | K54: Basic | M54: =AZ50 -> 929.8 | P54: O/T | S54: =AZ52 -> 139.47 | V54: Bonus | Y54: =AZ54 -> 37.19 | AB54: Total | AV54: =AZ50+AZ52+AZ54 -> 1106.46 | AZ54: =ROUND(AZ50*ROUND(RAND()*(0.08-0.02)+0.02,2),2) -> 37.19
H55: Deductions | K55: Tax | M55: =AZ51 -> 223.15 | P55: Nat. Ins. | S55: =AZ53 -> 27.89 | V55: Pension | Y55: =AZ55 -> 46.49 | AB55: Total | AV55: =AZ51+AZ53+AZ55 -> 297.53 | AZ55: =ROUND(AZ50*0.05,2) -> 46.49
AA56: Net PAY | AV56: =AV54-AV55 -> 808.93
D60: ="Q8. Kerr the car salesperson gets a basic monthly wage of £"&TEXT(AZ60,"0.00")&" + "&AZ61&"% of the total value of the cars he sold." -> Q8. Kerr the car salesperson gets a basic monthly wage of £585.20 + 4% of the total value of the cars he sold. | AZ60: =ROUND(RAND()*(800-500)+500,1) -> 585.2
AZ61: =ROUND(RAND()*(6-2)+2,0) -> 4
E62: ="Calculate his monthly wage if he sold £"&TEXT(AZ62,0)&" worth of cars." -> Calculate his monthly wage if he sold £39100 worth of cars. | AH62: wage £ | AZ62: =ROUND(RAND()*(50000-15000)+15000,-2) -> 39100
AZ63: =AZ60+AZ62*AZ61/100 -> 2149.2
